{"text_format":"1","workbook":"xlsx","n_sheets":4,"sheets":["Начало","Опросный лист","Справочник","О Компании"],"not_rendered":{"charts":0,"images":10,"macros":1,"external_links":0,"defined_names":24,"comments":0,"pivot_tables":0},"unopened":[],"bounds":{"document_bytes":16777216,"sheet_cells":100000,"rows_first":2000,"rows_last":500,"rows_between":2000,"halvings":0,"cell_chars":16384,"cell_head_chars":4096},"cells_cut":0,"cells_raw":0,"read":"whole","date_system":"1900"}

{"sheet":"Начало","index":0,"n_rows":43,"n_cols":12,"rows_kept":43,"cut":false,"hidden":false,"merged":[[5,12,5,15],[14,1,16,6],[6,1,6,2],[30,1,30,21],[32,1,32,21],[20,1,20,21],[22,1,22,21],[26,2,26,21],[24,1,24,21],[28,2,28,21],[27,2,27,21],[34,1,34,21],[40,1,40,21],[42,1,43,21],[35,11,38,20],[36,1,38,6]]}
[]
[]
[]
[]
[null,null,null,"142100, Московская область, г. Подольск, ул. Б. Серпуховская, д. 43, корп. 101, помещ. N1 "]
[null,null,null,"Телефон: +7 (499) 941-08-55 "]
[null,null,null,"Факс: +7 (499) 941-08-55 "]
[null,null,null,"e-mail: info@transformator.ru"]
[null,"ОПРОСНЫЙ ЛИСТ"]
[null,"МАСЛЯНЫЙ СИЛОВОЙ ТРАНСФОРМАТОР"]
[null,"Мы благодарим Вас за то,  что Вы проявили интерес к продукции Группы компаний \"Трансформер\"."]
[null,"Надеемся, что Вы по достоинству оцените качество и надёжность нашей продукции."]
[null,"Мы позаботились об удобстве нашей совместной работы."]
[null,"Процесс заполнения данного опросного листа (ОЛ) займёт всего несколько минут."]
[null,"НАЧАТЬ ЗАПОЛНЕНИЕ"]
[]
[]
[]
[null,"Рекомендации по заполнению. Уважаемые коллеги!"]
[]
[1,"Сделайте, пожалуйста, сразу копию с исходного файла через \"Сохранить как…\" для того, чтобы сохранить незаполненный оригинал ОЛ, т.к. некоторые свойства файла после заполнения стираются."]
[]
[2,"Обратите, пожалуйста, внимание на подсвечивания ячеек для ввода: они меняют свой цвет в зависимости от наличия введённых данных."]
[]
[3,"Правило активности: мы настоятельно рекомендуем заполнять все ячейки, чтобы специалисты ООО \"Трансформер\" могли как можно точнее сформулировать техническое и ценовое предложение:"]
[]
[null,"-","в случае, если на момент заполнения ОЛ нет данных по какому-либо параметру - укажите \"н/д\";"]
[null,"-","в случае, если какой-либо параметр принципиально не заполняется или нет необходимости в его заполнении - ставьте прочерк;"]
[null,"-","в остальных случаях руководствуйтесь всплывающими подсказками и вариантами выбора, предложенными системой."]
[]
[4,"В случае наличия приложений и ссылок на техническое задание или особые требования - перечислите  их в соответствующем пункте ОЛ и приложите к письму."]
[]
[5,"Перед отправкой заполненного опросного листа рекомендуем сохранить его в неизменяемом формате (например, PDF) или пометить документ, как окончательный. "]
[]
[6,"В случае возникновения вопросов по заполнению ОЛ или по параметрам трансформаторов - вы можете свзяться с менеджерами компании."]
[null,null,null,null,null,null,null,null,null,null,null,"ИНФОРМАЦИЯ О ГРУППЕ КОМПАНИЙ \"ТРАНСФОРМЕР"]
[null,"НАЧАТЬ ЗАПОЛНЕНИЕ"]
[]
[]
[]
[null,"Опросный лист совместим с программой Microsoft Excel, начиная с версии 2003 и не содержит элементов, способных нанести вред оборудованию и данным пользователя."]
[]
[null,"В связи с постоянным расширением номенклатуры и совершенствованием продукции, ООО \"Трансформер\"  оставляет за собой право вносить изменения в исходный файл опросного листа без уведомления."]

{"sheet":"Опросный лист","index":1,"n_rows":85,"n_cols":32,"rows_kept":85,"cut":false,"hidden":false,"merged":[[47,28,47,33],[32,1,32,13],[28,8,28,13],[32,20,32,32],[8,20,8,24],[14,28,14,32],[26,8,26,13],[24,8,24,13],[10,23,10,33],[16,28,16,32],[18,28,18,32],[20,28,20,32],[14,8,14,13],[24,28,24,32],[26,28,26,32],[9,9,9,16],[58,1,62,33],[70,12,70,33],[28,28,28,32],[18,8,18,13],[16,8,16,13],[20,8,20,13],[50,20,54,33],[38,1,42,12],[38,20,42,31],[50,8,50,13],[54,8,54,13],[44,31,45,32],[44,20,45,30],[44,1,45,12],[44,13,45,14],[38,16,40,19],[64,1,64,34],[84,0,84,30],[74,4,74,15],[78,23,78,33],[76,13,76,33],[80,25,80,33],[74,23,74,33],[78,4,78,15],[83,0,83,24],[83,25,83,29],[82,8,82,33],[80,9,80,15],[72,9,72,33]]}
[]
[]
[]
[]
[]
[null,null,null,null,null,null,null,null,"142100, Московская область, г. Подольск, ул. Б. Серпуховская, д. 43, корп. 101, помещ. N1 "]
[null,null,null,null,null,null,null,null,"Телефон: +7 (499) 941-08-55 "]
[null,null,null,null,null,null,null,null,"Факс: +7 (499) 941-08-55 "]
[null,null,null,null,null,null,null,null,"e-mail: info@transformator.ru"]
[null,"ОПРОСНЫЙ ЛИСТ:",null,null,null,null,null,null,"№"]
[null,"ТРАНСФОРМАТОР МАСЛЯНЫЙ СИЛОВОЙ",null,null,null,null,null,null,null,null,null,null,null,null,null,null,null,null,null,{"$f":"IF(X11<>\"\",\"V\",\">\")","v":">"},"ТИП:"]
[]
[1,"Электрические параметры:"]
[]
[{"$f":"IF(I15<>\"\",\"V\",\">\")","v":">"},"Мощность, кВА",null,null,null,null,null,null,null,null,null,null,null,null,null,null,null,null,null,{"$f":"IF(AC15<>\"\",\"V\",\">\")","v":">"},"Напряжение КЗ, %"]
[]
[{"$f":"IF(I17<>\"\",\"V\",\">\")","v":">"},"Напряжение ВН, кВ",null,null,null,null,null,null,null,null,null,null,null,null,null,null,null,null,null,{"$f":"IF(AC17<>\"\",\"V\",\">\")","v":">"},"Регулирование напряжения"]
[]
[{"$f":"IF(I19<>\"\",\"V\",\">\")","v":">"},"Напряжение НН, кВ",null,null,null,null,null,null,null,null,null,null,null,null,null,null,null,null,null,{"$f":"IF(AC19<>\"\",\"V\",\">\")","v":">"},"Глубина регулирования, %"]
[]
[{"$f":"IF(I21<>\"\",\"V\",\">\")","v":">"},"Схема и группа соед.:",null,null,null,null,null,null,null,null,null,null,null,null,null,null,null,null,null,{"$f":"IF(AC21<>\"\",\"V\",\">\")","v":">"},"Частота сети, Гц"]
[]
[2,"Конструктивное исполнение:",null,null,null,null,null,null,null,null,null,null,null,null,null,null,null,null,null,3,"Климатические особенности:"]
[]
[{"$f":"IF(I25<>\"\",\"V\",\">\")","v":">"},"Режим трансформации:",null,null,null,null,null,null,null,null,null,null,null,null,null,null,null,null,null,{"$f":"IF(AC25<>\"\",\"V\",\">\")","v":">"},"Климатическое исполнение:"]
[]
[{"$f":"IF(I27<>\"\",\"V\",\">\")","v":">"},"Материал обмоток:",null,null,null,null,null,null,null,null,null,null,null,null,null,null,null,null,null,{"$f":"IF(AC27<>\"\",\"V\",\">\")","v":">"},"Высота установки, м"]
[]
[{"$f":"IF(I29<>\"\",\"V\",\">\")","v":">"},"Степень защиты ВЫВОДОВ",null,null,null,null,null,null,null,null,null,null,null,null,null,null,null,null,null,{"$f":"IF(AC29<>\"\",\"V\",\">\")","v":">"},"Сейсмостойкость по MSK-64"]
[]
[4,"Исполнение вводов (для фланцевых ТМФ, ТМГФ, ТМЗ) и количество трансформаторов"]
[null,null,null,null,null,null,null,null,null,null,null,null,null,null,null,null,null,null,null,null,"Для двухтрансформаторных подстанций 2КТП:"]
["Т1:","Не выбрано",null,null,null,null,null,null,null,null,null,null,null,null,null,null,null,null,null,"Т2:","Не выбрано"]
[]
[]
[]
[]
[]
[null,null,null,null,null,null,null,null,null,null,null,null,null,null,null,null,{"$f":"IF(AF45>0,\"+\",\"\")","v":""}]
[]
[]
[]
[]
[]
[null,"Количество c исполнением вводов Т1:",null,null,null,null,null,null,null,null,null,null,null,0,null,null,null,null,null,null,"Количество c исполнением вводов Т2:",null,null,null,null,null,null,null,null,null,null,0]
[]
[null,null,{"$f":"IF(AND(B33<>\"Не выбрано\",N45=0),\"Укажите количество трансформаторов\",\"\")","v":""},null,null,null,null,null,null,null,null,null,null,null,null,null,null,null,null,null,null,{"$f":"IF(AND(U33=\"Не выбрано\",AF45<>0),\"Обнулите количество Т2, если парный трансформатор не нужен\",IF(AND(U33<>\"Не выбрано\",AF45=0),\"Укажите количество Т2, если требуется парный трансформатор\",\"\"))","v":""}]
[null,"Всего трансформаторов: ",null,null,null,null,null,null,{"$f":"N45+AF45","v":0},"шт.",null,null,null,null,null,null,null,null,null,"Тип:",null,{"$f":"X11","v":0},null,null,null,null,null,null,{"$f":"TODAY()","v":"2020-07-20"}]
[5,"Дополнительные параметры",null,null,null,null,null,null,null,null,null,null,null,null,null,null,null,null,null,6,"Дополнительная комплектация:"]
[]
[{"$f":"IF(I51<>\"\",\"V\",\">\")","v":">"},"Наличие и тип термометра"]
[]
[]
[]
[{"$f":"IF(I55<>\"\",\"V\",\">\")","v":">"},"Тип упаковки"]
[]
[7,"Дополнительные требования к параметрам, условиям работы и комплектации:"]
[]
[]
[]
[]
[]
[]
[]
[8,"Требуемые данные по запросу"]
[]
[]
[]
[9,"Сведения о клиенте:"]
[]
[{"$f":"IF(M71=\"\",\">\",\"V\")","v":">"},"Наименование организации:"]
[]
[{"$f":"IF(J73=\"\",\">\",\"V\")","v":">"},"Адрес организации:"]
[]
[{"$f":"IF(E75=\"\",\">\",\"V\")","v":">"},"ИНН:",null,null,null,null,null,null,null,null,null,null,null,null,null,null,null,null,null,{"$f":"IF(X75=\"\",\">\",\"V\")","v":">"},"КПП:"]
[]
[{"$f":"IF(N77=\"\",\">\",\"V\")","v":">"},"Контактное лицо (ФИО), должность:"]
[]
[{"$f":"IF(E79=\"\",\">\",\"V\")","v":">"},"Телефон:",null,null,null,null,null,null,null,null,null,null,null,null,null,null,null,null,null,{"$f":"IF(X79=\"\",\">\",\"V\")","v":">"},"e-mail:"]
[]
[{"$f":"IF(J81=\"\",\">\",\"V\")","v":">"},"Сфера применения тр-ра:",null,null,null,null,null,null,null,null,null,null,null,null,null,null,null,null,null,{"$f":"IF(Z81=\"\",\">\",\"V\")","v":">"},"Срок поставки:"]
[]
[{"$f":"IF(I83=\"\",\">\",\"V\")","v":">"},"Объект поставки:"]
["          Опросный лист отправлять по факсу:  +7 (499) 941-08-55 , либо на электронную почту",null,null,null,null,null,null,null,null,null,null,null,null,null,null,null,null,null,null,null,null,null,null,null,null,"info@transformator.ru"]
["С Вами свяжется наш менеджер для обсуждения деталей по заявке.",null,null,null,null,null,null,null,null,null,null,null,null,null,null,null,null,null,null,null,null,null,null,null,null,null,null,null,null,null,null,"Версия ОЛ: 3.0.0"]

{"sheet":"Справочник","index":2,"n_rows":14,"n_cols":2,"rows_kept":14,"cut":false,"hidden":true,"merged":[]}
["Модель","Фото"]
["Левое"]
["Правое"]
["Не выбрано"]
["Не выбрано"]
["Не выбрано"]
["Не выбрано"]
["Не выбрано"]
["Не выбрано"]
["Не выбрано"]
["Не выбрано"]
["Не выбрано"]
["<<<Другое исполнение>>>"]
["Не выбрано"]

{"sheet":"О Компании","index":3,"n_rows":10,"n_cols":6,"rows_kept":10,"cut":false,"hidden":false,"merged":[[0,1,1,1],[7,1,7,5],[6,1,6,5],[5,1,5,5],[2,1,2,5],[3,2,3,5]]}
[null,"О КОМПАНИИ",null,null,null,"К НАЧАЛУ"]
[null,null,null,null,null,"К ОПРОСНОМУ ЛИСТУ"]
[]
[null,null,"Группа компаний \"Трансформер\" занимает лидирующие позиции среди российских производителей электротехнического оборудования. По наращиванию производства и темпам модернизации предприятия Группы \"Трансформер\"  - одни из наиболее динамично развивающихся в отрасли."]
[]
[null,"Сотрудничество Группы компаний \"Трансформер\" с ключевыми российскими предприятиями позволяет эффективно реализовывать правительственную программу импортозамещения и энергосбережения."]
[null,"Разработки Группы компаний \"Трансформер\" позволяют уже сейчас производить оборудование, способствующее снижению энергозатрат предприятий."]
[null,"Группа компаний \"Трансформер\" обладает всеми необходимыми ресурсами для возможности реализации проекта строительства подстанции \"под ключ\" с использованием современных решений в минимальные сроки, отвечающей всем требованиям нормативной документации."]
[]
[null,"Производство\nсухих трансформаторов",null,"Производство\nреакторного оборудования",null,"Производство силовых \nмасляных трансформаторов"]